Cogmind - Beta 16 @@@ ROGUE MODE // 2025.12.01 @ 17:07:13 Player: AngelSpirit Result: Destroyed by BK-3LR(R) with Subdweller Machine Gun Performance ------------- Evolutions (0) 0 Regions Visited (3) 600 Robots Destroyed (34) 170 Value Destroyed (935) 935 Prototype IDs (0) 0 Alien Tech Used (0) 0 Bonus (0) 0 TOTAL SCORE: 1705 Bonus ------- None Cogmind --------- Core Integrity 0/250 Matter 159/300 Energy 248/250 System Corruption 0% Temperature Cool (0) Movement Rolling (90) Location -10/Subcaves Parts ------- > --- POWER (1) -------- Ion Engine > --- PROPULSION (2) --- Wheel Compact Wheel > --- UTILITY (2) ------ Medium Storage Unit Signal Interpreter > --- WEAPON (2) ------- Subdweller Beam Cannon Makeshift Shrapnel Gun > --- INVENTORY (10) --- Wheel High-capacity Matter Pod (200) Makeshift Light Armor Plating Hacking Suite Subdweller Laser Battle Cannon Subdweller Shrapnel Launcher Shrapnel Trap Peak State ------------ > --- POWER ------------ Ion Engine > --- PROPULSION ------- Wheel Compact Wheel > --- UTILITY ---------- Medium Storage Unit Signal Interpreter > --- WEAPON ----------- Shotgun Makeshift Shrapnel Gun > --- INVENTORY -------- Ion Engine Light Ion Engine Wheel Wheel Wheel High-capacity Matter Pod Hacking Suite Shotgun Battle Cannon Rocket Launcher [Rating: 12] Favorites ----------- Power Ion Engine Engine Ion Engine Propulsion Wheel Leg Aluminum Leg Wheel Wheel Utility Medium Storage Unit Storage Medium Storage Unit Processor Signal Interpreter Weapon Shotgun Energy Cannon Particle Cannon Ballistic Gun Shotgun Ballistic Cannon Battle Cannon Launcher Subdweller Shrapnel Launcher Build | -11 -10 -10 -10 ------- Run | Yrd Mat Min Sub Slots Evolved . | . . . . Power . | . . . . Propulsion . | . . . . Utility . | . . . . Weapon . | . . . . Parts Attached 29 | 6 11 3 9 Power 4 | 1 1 1 1 Engine 4 | 1 1 1 1 Core . | . . . . Reactor . | . . . . Propulsion 8 | 2 3 1 2 Treads . | . . . . Leg 3 | 2 1 . . Wheel 5 | . 2 1 2 Hover . | . . . . Flight . | . . . . Utility 5 | 1 3 1 . Device . | . . . . Storage 3 | 1 2 . . Processor 2 | . 1 1 . Hackware . | . . . . Protection . | . . . . Artifact . | . . . . Weapon 12 | 2 4 . 6 Energy Gun . | . . . . Energy Cannon 4 | . 2 . 2 Ballistic Gun 5 | 2 2 . 1 Ballistic Cannon 1 | . . . 1 Launcher 2 | . . . 2 Special Weapon . | . . . . Impact Weapon . | . . . . Slashing Weapon . | . . . . Piercing Weapon . | . . . . Special Melee Weapon . | . . . . Unidentified Prototypes . | . . . . Parts Lost 4 | . . . 4 Power 2 | . . . 2 Propulsion 2 | . . . 2 Utility . | . . . . Weapon . | . . . . Highest Loss Streak 2 | . . . 2 To Critical Strikes . | . . . . Average Backups 8 | . 6 10 9 Power 1 | . 1 2 1 Propulsion 2 | . 1 3 2 Utility 2 | . 1 2 2 Weapon 2 | . 1 2 2 Tool/Special . | . . . . Unused Backups 9 | . 2 1 6 Power . | . . . . Propulsion 2 | . 1 . 1 Utility 3 | . . . 3 Weapon 4 | . 1 1 2 Tool/Special . | . . . . Average Slot Usage (%) 98 | . 98 100 96 Engine 12 | . 14 14 11 Leg 3 | . 12 . . Wheel 24 | . 15 28 27 Storage 14 | . 14 14 14 Processor 13 | . 12 14 14 Energy Cannon 7 | . 13 . 7 Ballistic Gun 20 | . 14 28 18 Peak Build Rating 12 | 6 10 10 12 Average Rating 10 | 4 8 10 11 On Entrance 6 | . 6 10 10 Avg Prop Armor Cover (%) . | . . . . Naked Turns . | . . . . Heaviest Build 25 | 11 23 21 25 Greatest Support 26 | 20 20 26 26 Greatest Overweight (x) 3 | 3 1 1 1 Average Overweight (x) . | . . . . Largest Inventory Capacity 20 | 8 20 10 10 Average Capacity 9 | 7 8 10 10 Most Carried 10 | 2 10 10 10 Average Carried 8 | 1 6 9 9 Final Capacity 10 | 8 10 10 10 Final Carried 10 | 2 10 10 8 Class Distribution -------------------- 100% | Mutant Dominant Class ---------------- Mutant | -10/Materials Mutant | -10/Mines Mutant | -10/Subcaves Resources | -11 -10 -10 -10 ----------- Run | Yrd Mat Min Sub Matter Collected 976 | 242 259 236 239 Remotely . | . . . . Salvage Created 977 | . 455 228 294 Parts 77 | . 36 12 29 Haulers Intercepted 1 | . 1 . . Recyclers Shooed 1 | . 1 . . Parts Field Recycled . | . . . . Retrieved Matter . | . . . . Parts Self-Destructed 14 | . . . 14 Prevented . | . . . . Parts Restored . | . . . . Kills | -11 -10 -10 -10 ------- Run | Yrd Mat Min Sub Combat Hostiles Destroyed 27 | . 9 4 14 Guns 13 | . 7 4 2 Cannons 5 | . 2 . 3 AOE 8 | . . . 8 Classes Destroyed 9 | . 6 1 2 Worker 2 | . 2 . . Hauler 1 | . 1 . . Recycler 1 | . . 1 . Operator 1 | . 1 . . Watcher 2 | . 2 . . Swarmer 7 | . 3 . 4 Grunt 10 | . 6 4 . Sentry 1 | . . . 1 Subdweller 9 | . . . 9 Best Kill Streak 5 | . 5 2 5 Combat Bots Only 5 | . 4 2 5 Max Kills in Single Turn 4 | . 2 1 4 Gunslinging . | . . . . Exploded 4 | . . . 4 Melee . | . . . . Uniques/NPCs Destroyed . | . . . . Combat | -11 -10 -10 -10 -------- Run | Yrd Mat Min Sub Hostile Shots Fired 69 | . 16 9 44 Missed 23 | . 5 3 15 Hits 46 | . 11 6 29 Projectile 46 | . 11 6 29 AOE 3 | . . . 3 Critical Strikes 1 | . . . 1 Damage Taken 890 | . 111 71 708 Core 256 | . 32 . 224 Absorbed by Shields . | . . . . Core Remaining (%) 100 | 100 . . . Volleys Fired 70 | . 24 9 37 Largest 2 | . 2 2 2 Hottest 136 | . 136 46 104 Shots Fired 120 | . 48 18 54 Gun 69 | . 30 18 21 Cannon 42 | . 18 . 24 Launcher 9 | . . . 9 Special . | . . . . Kinetic 76 | . 30 18 28 Thermal 40 | . 18 . 22 Explosive 4 | . . . 4 Electromagnetic . | . . . . Robot Hit Streak 17 | . 17 5 8 Robot Miss Streak 7 | . 4 7 4 Penetration Max . | . . . . Secondary Targets 2 | . 1 . 1 Max Gunslinging Chain 1 | . 1 . 1 Shots Hit Robots 78 | . 33 13 32 Core Hits 53 | . 23 10 20 Critical Kills 1 | . . . 1 Critical Parts Destroyed . | . . . . Critical Strikes 1 | . . . 1 Meltdown 1 | . . . 1 Melee Attacks . | . . . . Impact . | . . . . Slashing . | . . . . Piercing . | . . . . Sneak Attacks . | . . . . Combat Hostiles . | . . . . Follow-up Attacks . | . . . . Damage Inflicted 2081 | . 509 241 1331 Guns 843 | . 306 241 296 Cannons 481 | . 203 . 278 Explosions 757 | . . . 757 Melee . | . . . . Ramming . | . . . . Kinetic 1392 | . 306 241 845 Thermal 481 | . 203 . 278 Explosive 208 | . . . 208 Electromagnetic . | . . . . Impact . | . . . . Slashing . | . . . . Piercing . | . . . . Highest Corruption . | . . . . Average Corruption . | . . . . Corruption Purged . | . . . . Corruption Blocked . | . . . . Overload Shots . | . . . . Overflow Damage 20 | . . . 20 Projectiles . | . . . . Explosions 20 | . . . 20 Melee . | . . . . Knockbacks . | . . . . Impact . | . . . . Kinetic . | . . . . Secondary . | . . . . Self-Inflicted Damage 40 | . . . 40 Shots 1 | . . . 1 Rammed . | . . . . Targets Rammed . | . . . . Kicked . | . . . . Crushed . | . . . . Highest Temperature 225 | . 225 4 . Average Temperature 67 | . 73 2 . Received Heat Transfer 153 | . 36 42 75 Siege Activations . | . . . . Martial Activations . | . . . . Shielding Activations . | . . . . Robots Disrupted . | . . . . Combat Hostiles . | . . . . Robots Corrupted . | . . . . Combat Hostiles . | . . . . Parts Fried . | . . . . Impact Corruptions . | . . . . Robots Melted 1 | . . . 1 Combat Hostiles 1 | . . . 1 Parts Melted 1 | . . . 1 Heat Transferred 740 | . 370 . 370 Parts Sabotaged . | . . . . Parts Stolen . | . . . . Parts Stripped . | . . . . Power Chain Reactions . | . . . . Alert | -11 -10 -10 -10 ------- Run | Yrd Mat Min Sub Maximum Alert Level . | . . . . Low Security (%) 100 | 100 100 100 . Level 1 . | . . . . Level 2 . | . . . . Level 3 . | . . . . Level 4 . | . . . . Level 5 . | . . . . High Security . | . . . . Max Security . | . . . . Peak Influence 162 | . 162 53 . Initial 7 | . . 7 . Average 42 | . 79 8 . Influence Increases 578 | . 310 108 160 Destroy 0b10 Robot/C 360 | . 180 80 100 Destroy 0b10 Robot/NC 35 | . 30 5 . Destroy Leader 66 | . 46 20 . Allied During Kill 3 | . . 3 . Successful Hack 24 | . 24 . . Disable Machine 15 | . 15 . . Lose Combat Pursuer 75 | . 15 . 60 Influence Decreases 578 | . 289 129 160 Entered New Map 14 | . . 14 . Time Decay 524 | . 289 115 120 Lost Part 40 | . . . 40 Squads Dispatched 1 | . 1 . . Investigation . | . . . . Extermination . | . . . . Reinforcement 1 | . 1 . . Assault . | . . . . Garrison . | . . . . Intercept . | . . . . Searches Triggered . | . . . . Construction Impeded . | . . . . Haulers Reinforced . | . . . . Active Scanning Responses . | . . . . Cargo Convoy Interrupts . | . . . . Stealth | -11 -10 -10 -10 --------- Run | Yrd Mat Min Sub Distress Signals 1 | . 1 . . Communications Jammed . | . . . . Distress Signals . | . . . . Times Spotted 35 | . 13 4 18 Peak Tracking Total 6 | . 3 2 6 Tactical Retreats 2 | . 1 . 1 Traps | -11 -10 -10 -10 ------- Run | Yrd Mat Min Sub Traps Triggered 1 | . . . 1 Indirectly . | . . . . Trap Hack Attempts . | . . . . Triggered . | . . . . Disarmed . | . . . . Reprogrammed . | . . . . Reused . | . . . . Traps Extracted . | . . . . Installed 1 | . . . 1 Triggered . | . . . . Most Traps Carried 1 | . . . 1 Machines | -11 -10 -10 -10 ---------- Run | Yrd Mat Min Sub Machines Disabled 1 | . 1 . . Max in Single Turn 1 | . 1 . . Machines Repaired . | . . . . Machines Dismantled . | . . . . Machines Sabotaged . | . . . . Overloaded Fab Kills . | . . . . Hacking | -11 -10 -10 -10 --------- Run | Yrd Mat Min Sub Machines Accessed 8 | . 8 . . Terminals 7 | . 7 . . Fabricators . | . . . . Repair Stations . | . . . . Recycling Units 1 | . 1 . . Scanalyzers . | . . . . Garrison Access . | . . . . Total Hacks 25 | . 25 . . Successful 11 | . 11 . . Failed 14 | . 14 . . Catastrophic 5 | . 5 . . Database Lockouts . | . . . . Manual 11 | . 11 . . Terminals 23 | . 23 . . Fabricators . | . . . . Repair Stations . | . . . . Recycling Units 2 | . 2 . . Scanalyzers . | . . . . Garrison Access . | . . . . Terminal Hacks 6 | . 6 . . Robot Analysis 1 | . 1 . . Locate Traps 2 | . 2 . . Hauler Manifests 1 | . 1 . . Registered Components 1 | . 1 . . Zone Layout 1 | . 1 . . Fabricator Hacks . | . . . . Repair Station Hacks . | . . . . Recycling Unit Hacks 1 | . 1 . . Report Inventory 1 | . 1 . . Scanalyzer . | . . . . Garrison Access Hacks . | . . . . Unauthorized Hacks 4 | . 4 . . Terminals 4 | . 4 . . Botnet 4 | . 4 . . Fabricators . | . . . . Repair Stations . | . . . . Recycling Units . | . . . . Scanalyzers . | . . . . Garrison Access . | . . . . Data Cores Recovered . | . . . . Used . | . . . . Hacking Detections 7 | . 7 . . Full Trace Events 1 | . 1 . . Feedback Events . | . . . . Feedback Blocked . | . . . . Robot Schematics Acquired . | . . . . Robots Built . | . . . . Authchips . | . . . . Time . | . . . . Total Robot Build Rating . | . . . . Part Schematics Acquired . | . . . . Parts Built . | . . . . Authchips . | . . . . Time . | . . . . Total Part Build Rating . | . . . . Part Studies Acquired . | . . . . Parts Repaired . | . . . . Time . | . . . . Parts Recycled . | . . . . Recycled Matter . | . . . . Retrieved Matter . | . . . . Retrieved Components . | . . . . Parts Scanalyzed . | . . . . Part Schematics Acquired . | . . . . Parts Damaged . | . . . . Bothacking | -11 -10 -10 -10 ------------ Run | Yrd Mat Min Sub Used RIF Installer . | . . . . Robots Hacked . | . . . . Non-combat . | . . . . Combat . | . . . . Robot Hacks Applied . | . . . . Relay Couplers Released . | . . . . Fabnet Peak Effective % . | . . . . Robots Rewired . | . . . . Allies Hacked . | . . . . Hacks Repelled . | . . . . Allies | -11 -10 -10 -10 -------- Run | Yrd Mat Min Sub Total Allies 1 | . . 1 . Largest Group 1 | . . 1 . Highest-Rated Group 31 | . . 31 . Highest-Rated Ally 31 | . . 31 . Total Orders . | . . . . Ally Attacks 2 | . . 2 . Total Damage 42 | . . 42 . Kills . | . . . . Allies Corrupted . | . . . . Allies Melted . | . . . . Intel | -11 -10 -10 -10 ------- Run | Yrd Mat Min Sub Active Infowar (turns) . | . . . . Robot Analysis Total 1 | . 1 . . Derelict Logs Recovered 4 | . . 2 2 Drone Launches . | . . . . Drone Recoveries . | . . . . Exploration | -11 -10 -10 -10 ------------- Run | Yrd Mat Min Sub Turns Passed 2223 | 61 672 644 846 Spaces Moved 1920 | 37 556 586 741 Core 7 | 7 . . . Treads . | . . . . Legs 206 | 30 176 . . Wheels 1707 | . 380 586 741 Hover . | . . . . Flight . | . . . . Fastest Speed 50 | 50 80 90 90 Average Speed 93 | 136 99 91 90 Slowest Speed 200 | 200 120 95 115 Overloaded Moves . | . . . . Propulsion Burnouts . | . . . . Robots Hopped . | . . . . Potential Cave-ins . | . . . . Cave-ins Triggered . | . . . . Exploration Rate (%) 60 | 3 98 92 47 Regions Visited 3 Branch Regions 2 Pre-discovered Areas 1 | . . . 1 Known Exits Taken 1 | . . 1 . Unknown Exits Taken 2 | 1 1 . . Scrap Searched 8 | . . 1 7 Spaces Dug 2 | . . . 2 Terrain Destroyed 80 | . . . 80 Melee . | . . . . Projectile 2 | . . . 2 AOE 78 | . . . 78 Terrain Rammed . | . . . . Walls Destroyed . | . . . . Machines Disabled . | . . . . Actions | -11 -10 -10 -10 --------- Run | Yrd Mat Min Sub Total 2215 | 44 631 679 861 Wait 154 | . 19 77 58 Move 1917 | 36 555 585 741 Hop . | . . . . Pick Up 18 | 2 10 2 4 Fast Attach 14 | 6 6 . 2 Attach 5 | . 1 . 4 Detach 1 | . . . 1 Swap 16 | . 5 3 8 Drop 19 | . 11 3 5 Fire 70 | . 24 9 37 Melee . | . . . . Ram . | . . . . Kick . | . . . . Crush . | . . . . Escape Stasis . | . . . . Rewire . | . . . . Trap 1 | . . . 1 Miscellaneous . | . . . . Route ------- -11/Scrapyard -10/Materials (discovered 4 exits: *Mat x3 / [*Min]) -10/Mines (discovered 3 exits: *Mat x2 / *Sub) -10/Subcaves History --------- Turn | Location | Event 34 | -11/Scrapyard | Discovered new exit (range 15) 62 | -11/Scrapyard | Entered Materials 257 | -10/Materials | Discovered new exit (range 16) 307 | -10/Materials | Build established: Mutant 461 | -10/Materials | Discovered new exit (range 3) 575 | -10/Materials | Discovered new exit (range 3) 612 | -10/Materials | Discovered new exit (range 16) 734 | -10/Materials | Entered Mines 741 | -10/Mines | Received a Rocket Launcher from a helpful Derelict 784 | -10/Mines | A weapon hastily lodged in a ceiling crevice suddenly fell to the ground 920 | -10/Mines | Learned location of 1 exit from Materials 951 | -10/Mines | Received a Mining Laser from a helpful Derelict 1011 | -10/Mines | Discovered new exit (range 11) 1019 | -10/Mines | Identified exit to Materials 1175 | -10/Mines | Learned 4 Materials zone layouts 1179 | -10/Mines | Discovered exit to Materials (range 8) 1335 | -10/Mines | Discovered new exit (range 8) 1340 | -10/Mines | Identified exit to Subcaves 1378 | -10/Mines | Entered Subcaves 1378 | -10/Subcaves | Accompanied by 1 ally 1467 | -10/Subcaves | Learned Materials stockpile data 1704 | -10/Subcaves | Shifting Twisted Machinery released Sub. Shrapnel Launcher 1731 | -10/Subcaves | Shifting Twisted Machinery released Sub. Beam Cannon 1900 | -10/Subcaves | Shifting Twisted Machinery released Mak. System Restoration Module 1907 | -10/Subcaves | Shifting Twisted Machinery released Shrapnel Trap 2036 | -10/Subcaves | Ambushed by Subdweller buried in earth 2048 | -10/Subcaves | Ambushed by Subdwellers from Twisted Machinery 2049 | -10/Subcaves | Core integrity fell below 50% 2151 | -10/Subcaves | Shifting Twisted Machinery released Sub. Beam Cannon 2164 | -10/Subcaves | Shifting Twisted Machinery released Battle Cannon 2210 | -10/Subcaves | Core integrity fell below 20% 2224 | -10/Subcaves | Destroyed by BK-3LR(R) with Subdweller Machine Gun Last Messages --------------- 02051_ Wheel destroyed. 02051_ Lgt. Ion Engine destroyed. 02052_ QF-KD2(R) destroyed. 02056_ MW-3DB(R) destroyed. 02064_ Acquired Sub. Laser. 02073_ RM-8V5(R): "OHNO!" 02084_ Acquired 9 matter. 02112_ Acquired 8 matter. 02114_ Acquired 7 matter. 02135_ 5V-L81(u) tweaks Twisted Machinery. Sub. Beam Cannon falls loose from the Twisted Machinery. Battle Cannon falls loose from the Twisted Machinery. 02168_ Dropped Sub. Beam Cannon. 02187_ 3N-S0L(R) emerges from the Twisted Machinery. 02204_ 3N-S0L(R) destroyed. 02212_ BK-3LR(R) affixes Scrap Shield Fragment to Scrap Shield. Map ----- +----------------------------------------------------+ | ?????????????????????????????????????????????????? | | ?????????????????????????????????????????????????? | | ?????????????????????????????????????????????????? | | ?????????????????????????????????????????????????? | | ?????????????????????????????????????????????????? | | ?????????????????"""?????????????????????????????? | | ????????????????? """""??????????????????????????? | | ????????????????? ""??????????????????????????? | | ????????????????## ?????????????????????????? | | ????????????????# "" ?????????????????????????? | | ????????????????? " ?????????????????????????? | | ??????????????????# ?????????????????????????? | | ???????????????????# ?????????????????????????? | | ????????????????????# ####?????????????????????# | | ?????????????????????# #?????????????????? ?# | | ??????????????????????# #????????????????? ""#? | | ??????????????????????# ##????????????????"" ? | | ??????????????????????## #???????????????## ? | | ???????????????????????#* ! #???????????????#"" #? | | ???????????????????????##R###???????????????#"""## | | ????????????????????????#&[#????????????????#""""" | | ????????????????????????#&####?????????####??#" " | | ????????????????????????# # ########### ####" | | ????????????????????????# ## ## "##"" # | | ????????????????????????# " ] " " # | | ????????????????????????#@##"# " ### """" ## | | ????????????????????????###############?###""####? | | ??????????????????????????????????????????####???? | | ?????????????????????????????????????????????????? | | ?????????????????????????????????????????????????? | | ?????????????????????????????????????????????????? | | ?????????????????????????????????????????????????? | | ?????????????????????????????????????????????????? | | ?????????????????????????????????????????????????? | | ?????????????????????????????????????????????????? | | ?????????????????????????????????????????????????? | | ?????????????????????????????????????????????????? | | ?????????????????????????????????????????????????? | | ?????????????????????????????????????????????????? | | ?????????????????????????????????????????????????? | | ?????????????????????????????????????????????????? | | ?????????????????????????????????????????????????? | | ?????????????????????????????????????????????????? | | ?????????????????????????????????????????????????? | | ??????????????????????????????????????????????#### | | ??????????????????????????????????????????????# | | ??????????????????????????????????????????????# | | ###??###????????????????#####?????????????????# | | # #### ##??????##########" ##???????????????##" & | | # ## # ######## ##! ## " ###########?##### & | +----------------------------------------------------+ Best States ------------- Heat Dissipation 25 Energy Generation 10 Energy Capacity 250 Matter Stores 300 Matter Capacity 300 Sight Range 16 Terrain Scan Density 10 Evasion (%) 55 Targeting Accuracy 5 Item Schematics ----------------- None Robot Schematics ------------------ None Fabricated ------------ Nothing Repaired ---------- Nothing Studied --------- None Alien Tech Used ----------------- None Achievements -------------- None Challenges ------------ None Game ------ Seed MasterSingularityConstruct Manual? 0 Play Time 00:20:12 Cumulative 138.7 hours Start 2025.12.01 @ 16:50:33 End 2025.12.01 @ 17:07:13 Sessions 1 Manual Loads 0 Difficulty Rogue Special Mode None Game No. 74 Rogue 74 Adventurer 0 Explorer 0 Win Type - Total 1 Types 1/0/0/0/0/0/0/0/0/0 Lore% 63 Gallery% 60 Achievement% 48 Wizard Run 0 Options --------- Layout 1 ASCII 0 Keyboard 0 Movement Mouse Keybinds 0 Fullscreen 2 Font 32/SmallcapsGlow Map View 50x35 Zoom Use 0% Tactical HUD 1 Map Filters NONE Filters NONE Steam 1 RUN: fafd828d-cbd4-406e-89ac-a62491add8cb